bitfinex/quotes_SOLUSD_20250708
["timestamp","ask_amount","ask_price","bid_price","bid_amount"]
[1751996698022,0.06,151.84,151.82,40.42671261]
[1751996698216,0.06,151.84,151.83,5.83616688]
[1751996698818,0.06,151.84,151.83,33.84]
[1751996699930,0.06,151.84,151.83,39.67616688]
[1751996701215,0.06,151.84,151.83,46.26248052]
[1751996703331,0.06,151.84,151.83,64.91212938]
[1751996703626,0.06,151.84,151.83,96.74829626]
[1751996705423,0.06,151.84,151.83,97.40692762]
[1751996706928,13.90116903,151.97,151.9,26.0]
[1751996707110,7.36098783,151.96,151.95,5.83616688]
[1751996707309,7.36098783,151.96,151.95,39.67616688]
[1751996707628,7.36098783,151.96,151.95,33.84]
[1751996708027,8.95138783,151.97,151.95,39.67616688]
[1751996708254,6.5795228,151.99,151.95,39.67616688]
[1751996708413,19.96697392,152.0,151.95,39.67616688]
[1751996708612,7.35169208,151.99,151.95,39.67616688]
[1751996709816,0.28432314,151.98,151.95,39.67616688]
[1751996710215,6.57949932,151.99,151.95,39.67616688]
[1751996710514,19.95768968,152.0,151.95,39.67616688]
[1751996710712,0.2,152.0,151.98,5.83616688]
[1751996710913,0.2,152.0,151.98,39.65616688]
[1751996711117,0.2,152.0,151.99,5.83616688]
[1751996712149,0.2,152.0,151.99,12.4155471]
[1751996718233,0.2,152.0,151.99,31.06519596]
[1751996718450,0.2,152.0,151.99,25.22902908]
[1751996718647,0.2,152.0,151.99,36.90136284]
[1751996719055,0.2,152.0,151.99,31.06519596]
[1751996720330,0.2,152.0,151.99,62.90136284]
[1751996722255,1e-08,152.0,151.99,36.90136284]
[1751996722458,1e-08,152.0,151.99,43.47236284]
[1751996724141,5.90083809,152.09,152.06,5.83616688]
[1751996724347,6.57467303,152.1,152.07,39.63616688]
[1751996724658,154.07433506,152.11,152.07,39.63616688]
[1751996724861,159.91050194,152.11,152.07,39.63616688]
[1751996725534,154.07433506,152.11,152.07,39.63616688]
[1751996725739,159.91050194,152.11,152.07,39.63616688]
[1751996725940,5.83616688,152.1,152.07,33.8]
[1751996726366,154.07433506,152.11,152.07,33.8]
[1751996726556,159.91050194,152.11,152.07,39.63616688]
[1751996726752,159.91050194,152.11,152.07,33.8]
[1751996726954,154.07433506,152.11,152.07,39.63616688]
[1751996727157,5.83616688,152.1,152.07,33.8]
[1751996728049,153.33616688,152.11,152.07,46.21207319]
[1751996728252,159.91037169,152.11,152.07,39.63616688]
[1751996728559,147.5,152.11,152.07,39.63616688]
[1751996728763,147.5,152.11,152.09,5.83616688]
[1751996728937,147.5,152.11,152.1,33.78]
[1751996729140,154.07418973,152.11,152.1,33.78]
[1751996729338,147.5,152.11,152.1,33.78]
[1751996732347,6.57305515,152.14,152.1,39.61616688]
[1751996732942,7.05695115,152.15,152.1,46.19075375]
[1751996733148,0.2,152.15,152.1,40.35458687]
[1751996733349,6.77265404,152.15,152.11,5.83616688]
[1751996733559,6.77265404,152.15,152.12,33.78]
[1751996733766,12.60882092,152.15,152.12,33.78]
[1751996734143,5.83616688,152.14,152.12,33.78]
[1751996735280,32.12049002,152.13,152.02,13.11290612]
[1751996735574,0.28432314,152.1,152.03,31.83616688]
[1751996735767,5.83616688,152.08,152.04,5.83616688]
[1751996735966,0.28432314,152.1,152.05,46.19284102]
[1751996736273,7.56311713,152.1,152.05,46.19284102]
[1751996736451,7.27879399,152.09,152.06,5.83616688]
[1751996736651,12.69516874,152.1,152.07,33.78]
[1751996736887,7.27844238,152.09,152.07,33.78]
[1751996737256,13.11460926,152.09,152.07,33.78]
[1751996737474,5.83616688,152.08,152.07,33.78]
[1751996737678,0.28432314,152.07,152.02,5.83616688]
[1751996737981,12.41295436,152.05,152.03,33.78]
[1751996738195,5.83616688,152.04,151.95,17.96494989]
[1751996738480,5.83616688,152.03,151.99,5.83616688]
[1751996738776,5.83616688,152.03,151.97,18.64964886]
[1751996738777,5.83616688,152.03,151.98,31.83616688]
[1751996738959,5.83616688,152.03,151.99,33.78]
[1751996739155,7.28229977,152.04,151.99,33.78]
[1751996739377,12.413837,152.03,151.99,33.78]
[1751996740859,5.83616688,152.0,151.97,26.0]
[1751996741063,5.83616688,151.99,151.97,33.78]
[1751996741876,12.41561693,151.99,151.97,33.78]
[1751996742057,5.83616688,151.99,151.97,33.78]
[1751996742459,12.41557454,151.99,151.97,33.78]
[1751996742667,5.83616688,151.99,151.97,33.78]
[1751996742868,5.83616688,152.0,151.97,33.78]
[1751996743256,13.13374461,152.01,151.97,33.78]
[1751996743455,13.13374461,152.01,151.96,12.41654633]
[1751996743684,19.71239103,152.01,151.97,33.78]
[1751996743877,7.29757773,152.0,151.97,33.78]
[1751996746287,5.83616688,152.02,151.98,5.83616688]
[1751996746465,7.31030739,152.01,151.97,39.61616688]
[1751996746980,13.14647427,152.01,151.97,33.78]
[1751996747287,5.83616688,151.98,151.97,33.78]
[1751996747459,5.83616688,151.98,151.94,5.83616688]
[1751996747786,13.14647427,151.98,151.95,33.78]
[1751996747961,5.83616688,151.98,151.95,33.78]
[1751996748157,6.58067912,151.96,151.91,1.6609]
[1751996748378,12.416846,151.96,151.92,33.78]
[1751996748563,7.33006786,151.95,151.92,33.78]
[1751996748763,7.33006786,151.95,151.92,39.61616688]
[1751996749259,5.83616688,151.96,151.92,39.61616688]
[1751996749483,7.33477502,151.95,151.93,33.78]
[1751996749663,7.33477502,151.94,151.93,33.78]
[1751996750377,7.33477502,151.94,151.92,39.63616688]
[1751996750596,6.58116642,151.95,151.92,39.63616688]
[1751996750808,7.33977381,151.94,151.92,39.63616688]
[1751996751093,5.83616688,151.97,151.92,39.63616688]
[1751996751292,13.17585022,151.96,151.92,46.21848428]
[1751996751499,7.33968334,151.95,151.92,46.21848428]
[1751996751667,7.33968334,151.94,151.92,46.21848428]
[1751996751866,5.83616688,151.96,151.92,46.21848428]
[1751996752208,7.34492223,151.95,151.89,26.0]
[1751996752501,7.34492223,151.94,151.91,5.83616688]
[1751996752673,7.34492223,151.93,151.92,33.8]
[1751996753060,7.34492223,151.93,151.91,39.63616688]
[1751996753261,7.34625398,151.92,151.89,39.63616688]
[1751996753491,5.83616688,151.93,151.89,39.63616688]
[1751996753680,7.34516351,151.92,151.89,39.63616688]
[1751996753998,5.83616688,151.93,151.89,39.63616688]
[1751996754158,7.34516536,151.92,151.89,46.21983162]
[1751996755086,5.83616688,151.94,151.9,5.83616688]
[1751996755268,7.34291662,151.93,151.91,33.8]
[1751996756366,12.41736419,151.95,151.91,33.8]
[1751996756688,7.3388934,151.94,151.91,46.21881997]
[1751996756860,5.83616688,151.95,151.91,46.21881997]
[1751996757066,7.33889525,151.94,151.91,33.8]
[1751996757267,7.33889525,151.94,151.91,39.63616688]
[1751996757672,5.83616688,151.95,151.91,46.2189779]
[1751996757894,13.1728817,151.95,151.91,46.2189779]
[1751996759082,7.33671482,151.95,151.93,5.83616688]
[1751996759285,161.51137423,151.97,151.91,40.38281102]
[1751996759493,7.33309654,151.96,151.92,5.83616688]
[1751996759803,13.16926342,151.96,151.92,5.83616688]
[1751996760003,5.83616688,151.94,151.91,33.8]
[1751996760181,7.33309654,151.96,151.88,0.03]
[1751996760182,5.83616688,151.92,151.88,0.03]
[1751996760496,5.83616688,151.91,151.88,0.03]
[1751996760699,5.83616688,151.91,151.88,33.83]
[1751996761495,12.41909239,151.91,151.88,33.83]
[1751996761900,6.58292551,151.91,151.88,0.03]
[1751996762213,5.83616688,151.89,151.88,0.03]
[1751996762902,5.83616688,151.9,151.88,0.03]
[1751996764376,5.83616688,151.89,151.88,0.03]
[1751996766993,5.83616688,151.9,151.88,0.03]
[1751996767678,5.83616688,151.91,151.88,0.03]
[1751996768510,12.41910007,151.91,151.88,0.03]
[1751996768806,5.83616688,151.91,151.88,0.03]
[1751996769103,12.41903617,151.91,151.88,0.03]
[1751996770290,5.83616688,151.91,151.88,0.03]
[1751996770907,12.41867022,151.92,151.88,0.03]
[1751996771213,5.83616688,151.91,151.88,0.03]
[1751996773220,5.83616688,151.89,151.88,0.03]
[1751996773389,6.12049002,151.89,151.88,0.03]
[1751996773721,13.44082097,151.89,151.88,0.03]
[1751996773891,6.12049002,151.89,151.88,0.03]
[1751996774406,20.02453286,151.89,151.88,0.03]
[1751996777693,14.18836598,151.89,151.88,0.03]
[1751996777915,20.02453286,151.89,151.88,0.03]
[1751996781890,7.32033095,151.89,151.88,0.03]
[1751996782117,13.15649783,151.89,151.88,0.03]
[1751996782322,7.32033095,151.89,151.88,0.03]
[1751996782626,19.74020972,151.89,151.88,0.03]
[1751996783408,20.02453286,151.89,151.88,0.03]
[1751996784731,14.18836598,151.89,151.88,0.03]
[1751996784908,20.02453286,151.89,151.88,0.03]
[1751996787212,7.32033095,151.89,151.88,0.03]
[1751996787727,7.32033095,151.89,151.88,5.86616688]
[1751996788124,7.32033095,151.92,151.88,5.86616688]
[1751996788420,7.32033095,151.91,151.89,12.41970677]
[1751996788629,7.32033095,151.9,151.89,12.41970677]
[1751996788821,7.32033095,151.92,151.89,5.83616688]
[1751996789002,7.32033095,151.91,151.89,5.83616688]
[1751996789202,7.32033095,151.9,151.89,12.41987877]
[1751996789431,153.33616688,151.93,151.89,12.41987877]
[1751996789615,7.35262687,151.92,151.9,5.83616688]
[1751996789815,147.5,151.93,151.9,5.83616688]
[1751996789816,7.35262687,151.91,151.9,5.83616688]
[1751996790009,7.35262687,151.92,151.9,5.83616688]
[1751996790217,7.35262687,151.91,151.9,5.83616688]
[1751996790446,7.35262687,151.92,151.9,12.41944535]
[1751996790723,147.5,151.93,151.91,5.83616688]
[1751996790907,7.35506642,151.92,151.9,6.58327847]
[1751996792019,7.35506642,151.92,151.91,5.83616688]
[1751996792432,7.35506642,151.92,151.91,12.41901198]
[1751996793831,7.35506642,151.92,151.91,5.83616688]
[1751996795217,6.58126902,151.95,151.91,5.83616688]
[1751996795421,7.36838527,151.94,151.92,5.83616688]
[1751996795727,7.36838527,151.93,151.92,5.83616688]
[1751996796416,7.36838527,151.95,151.92,5.83616688]
[1751996796617,7.36838527,151.94,151.92,5.83616688]
[1751996796831,7.36838527,151.93,151.92,5.83616688]
[1751996797216,7.36838527,151.95,151.92,5.83616688]
[1751996797423,7.36943155,151.94,151.92,5.83616688]
[1751996797629,12.41701933,151.96,151.92,5.83616688]
[1751996797836,7.36891748,151.95,151.92,5.83616688]
[1751996798017,7.36891748,151.94,151.92,5.83616688]
[1751996798218,6.58085245,151.96,151.92,5.83616688]
[1751996798415,7.36891748,151.95,151.92,5.83616688]
[1751996798614,7.36891748,151.94,151.92,5.83616688]
[1751996798814,7.36891748,151.93,151.92,5.83616688]
[1751996799012,7.36891748,151.95,151.92,12.41857867]
[1751996799230,7.36891748,151.94,151.92,12.41857867]
[1751996799434,6.58070316,151.96,151.92,12.41857867]
[1751996799738,7.36857143,151.95,151.92,12.41857867]
[1751996800031,7.36857143,151.94,151.92,12.41857867]
[1751996800241,12.70073612,151.97,151.92,12.41857867]
[1751996800417,7.36892549,151.96,151.92,12.41857867]
[1751996800610,7.36892549,151.95,151.92,12.41857867]
[1751996800839,7.36892549,151.94,151.92,12.41857867]
[1751996801007,6.5802461,151.97,151.93,5.83616688]
[1751996801220,7.36849262,151.96,151.93,5.83616688]
[1751996801433,7.36849262,151.95,151.93,5.83616688]
[1751996801741,7.36849262,151.94,151.93,5.83616688]
[1751996802119,7.36849262,151.96,151.93,12.41813404]
[1751996802326,7.36849262,151.95,151.93,12.41813404]
[1751996802534,7.36849262,151.94,151.93,12.41813404]
[1751996803012,7.36849262,151.96,151.93,5.83616688]
[1751996803212,7.36849262,151.95,151.92,12.41850996]
[1751996803437,7.36849262,151.94,151.92,12.41850996]
[1751996803742,12.41645731,151.97,151.92,12.41850996]
[1751996803917,7.36853769,151.96,151.93,12.41799081]
[1751996804107,7.36853769,151.95,151.93,12.41799081]
[1751996804314,7.36853769,151.94,151.93,12.41799081]
[1751996804514,7.36853769,151.96,151.93,12.41799081]
[1751996804731,7.36853769,151.95,151.93,6.58182393]
[1751996804925,147.5,151.98,151.94,5.83616688]
[1751996805123,147.5,151.98,151.95,5.83616688]
[1751996805124,7.36808567,151.97,151.95,5.83616688]
[1751996805324,7.36808567,151.96,151.94,5.83616688]
[1751996805638,159.91614466,151.98,151.94,5.83616688]
[1751996805885,7.36591772,151.97,151.94,5.83616688]
[1751996806025,7.36591772,151.97,151.94,12.41765222]
[1751996809162,7.36591772,151.97,151.95,5.83616688]
[1751996809844,7.36591772,151.97,151.95,12.4171406]
[1751996810551,147.5,151.98,151.96,5.83616688]
[1751996811555,147.5,151.98,151.97,5.83616688]
[1751996812553,147.5,151.98,151.97,12.41641298]
[1751996814359,38.41441005,152.02,151.97,12.41641298]
[1751996814656,7.34777,152.01,151.97,12.41641298]
[1751996815756,19.76256325,152.01,151.96,6.58048292]
[1751996815962,5.83616688,152.0,151.96,12.4166498]
[1751996816665,12.41479325,152.01,151.96,12.4166498]
[1751996816858,26.0,152.04,152.0,5.83616688]
[1751996817037,7.34288128,152.03,152.0,5.83616688]
[1751996817236,5.83616688,152.05,152.0,5.83616688]
[1751996817437,5.83616688,152.05,151.99,5.83616688]
[1751996817438,5.83616688,152.04,151.99,5.83616688]
[1751996817959,5.83616688,152.02,151.96,66.36048292]
[1751996818161,5.83616688,152.02,151.97,5.83616688]
[1751996818537,5.83616688,152.02,151.98,5.83616688]
[1751996820263,5.83616688,152.02,151.98,12.41587322]
[1751996820560,6.57797354,152.03,151.98,12.41587322]
[1751996820561,5.83616688,152.03,151.98,12.41587322]
[1751996820762,5.83616688,152.03,151.99,5.83616688]
[1751996820951,13.17454373,152.03,151.99,5.83616688]
[1751996821274,7.33837685,152.03,152.0,5.83616688]
[1751996821566,12.4135037,152.04,151.99,12.41543039]
[1751996821953,5.83616688,152.03,151.99,12.41543039]
[1751996822457,5.83616688,152.03,151.98,12.41579629]
[1751996822662,5.83616688,152.01,151.96,59.78]
[1751996822963,5.83616688,152.02,151.98,5.83616688]
[1751996823268,5.83616688,152.01,151.97,12.41636995]
[1751996824361,6.5783361,152.02,151.98,5.83616688]
[1751996824362,12.41450298,152.02,151.98,5.83616688]
[1751996825462,12.41450298,152.02,151.98,12.41594782]
[1751996825665,154.07784075,152.03,151.98,12.41594782]
[1751996825965,7.34081731,152.02,151.98,12.41594782]
[1751996826166,7.34081731,152.02,151.99,5.83616688]
[1751996827863,7.34081731,152.02,151.98,12.41594782]
[1751996828958,7.34081731,152.02,151.99,5.83616688]
[1751996829263,159.91405615,152.03,151.99,5.83616688]
[1751996829469,7.3452036,152.02,151.99,5.83616688]
[1751996830048,7.3452036,152.02,152.0,5.83616688]
[1751996830662,7.3452036,152.02,151.98,40.33978094]
[1751996830873,7.3452036,152.02,152.0,5.83616688]
[1751996831377,7.3452036,152.02,151.98,40.33978094]
[1751996831562,7.3452036,152.02,152.0,5.83616688]
[1751996832349,7.3452036,152.01,152.0,5.83616688]
[1751996832643,7.3452036,152.02,152.0,5.83616688]
[1751996832955,7.3452036,152.01,151.99,5.83616688]
[1751996833154,6.57811305,152.02,151.99,5.83616688]
[1751996833362,7.35662943,152.01,151.99,5.83616688]
[1751996833563,159.91400634,152.03,151.99,5.83616688]
[1751996833763,7.35868494,152.02,151.99,5.83616688]
[1751996833966,7.35868494,152.01,151.99,5.83616688]
[1751996834174,159.91400634,152.03,151.99,5.83616688]
[1751996834365,7.35868866,152.02,151.99,5.83616688]
[1751996834672,7.54686688,152.1,152.02,18.64964886]
[1751996834882,0.06,152.1,152.09,5.83616688]
[1751996835944,0.06,152.1,152.07,33.76]
[1751996836169,0.06,152.1,152.09,5.83616688]
[1751996840280,0.06,152.1,152.07,33.76]
[1751996840482,0.06,152.1,152.09,5.83616688]
[1751996842574,0.06,152.1,152.08,5.83616688]
[1751996842764,0.06,152.1,152.09,33.74]
[1751996844151,0.06,152.1,152.03,1.6278]
[1751996844353,5.83616688,152.05,152.01,5.83616688]
[1751996844764,5.83616688,152.05,152.02,33.72]
[1751996844986,5.83616688,152.06,152.02,39.55616688]
[1751996845578,5.83616688,152.06,152.03,33.74]
[1751996846480,5.83616688,152.05,152.03,33.74]
[1751996848677,5.83616688,152.05,151.99,18.67964886]
[1751996848678,5.83616688,152.04,151.99,18.67964886]
[1751996848984,5.83616688,152.02,151.99,0.03]
[1751996849174,5.83616688,152.02,151.99,33.75]
[1751996849576,5.83616688,152.02,151.99,0.03]
[1751996850796,12.41429203,152.02,151.99,0.03]
[1751996853686,12.41396295,152.03,151.99,0.03]
[1751996854668,6.57779607,152.03,151.99,0.03]
[1751996854869,12.41396295,152.03,151.99,0.03]
[1751996855289,12.4135006,152.04,152.0,5.83616688]
[1751996855489,7.35266525,152.03,151.99,0.03]
[1751996855690,5.83616688,152.03,151.99,5.86616688]
[1751996855990,13.18880954,152.03,151.99,5.86616688]
[1751996856293,5.83616688,152.03,151.99,0.03]
[1751996856497,19.76747593,152.03,151.99,5.86616688]
[1751996856673,12.47393592,152.03,151.99,5.86616688]
[1751996857295,12.47393592,152.03,151.99,0.03]
[1751996858597,12.47393592,152.03,151.99,5.86616688]
[1751996860196,5.83616688,152.02,151.99,0.03]
[1751996860389,12.41430754,152.02,151.99,0.03]
[1751996860882,5.83616688,152.02,151.99,0.03]
[1751996861395,5.89616688,152.03,151.99,5.86616688]
[1751996861578,0.06,152.03,151.99,5.86616688]
[1751996861778,7.41809096,152.03,151.99,5.86616688]
[1751996861984,0.06,152.03,151.99,5.86616688]
[1751996862392,7.41809096,152.03,151.99,12.44546707]
[1751996862912,7.41809096,152.03,152.0,5.83616688]
[1751996864309,0.06,152.03,152.0,5.83616688]
[1751996864490,0.06,152.03,152.01,5.83616688]
[1751996865388,0.06,152.03,152.02,5.83616688]
[1751996865579,0.06,152.03,152.02,12.41424871]
[1751996869616,0.06,152.03,152.02,31.06389757]
[1751996874317,0.06,152.03,152.02,12.41424871]
[1751996874482,0.06,152.03,152.02,5.83616688]
[1751996875182,0.06,152.03,152.01,39.55616688]
[1751996875817,0.06,152.03,152.01,46.13463873]
[1751996875990,0.06,152.03,152.02,5.83616688]
[1751996876684,0.06,152.03,152.02,12.41424871]
[1751996880505,0.06,152.03,152.02,31.06389757]
[1751996881711,7.36621556,152.08,152.07,18.64964886]
[1751996881892,0.06,152.1,152.07,18.64964886]
[1751996881893,0.06,152.1,152.07,58.18581574]
[1751996882096,7.36656186,152.09,152.07,52.34964886]
[1751996882423,0.06,152.1,152.07,52.34964886]
[1751996882628,7.42450263,152.1,152.07,52.34964886]
[1751996882916,0.06,152.1,152.07,52.34964886]
[1751996883287,0.06,152.1,152.09,5.83616688]
[1751996883492,0.06,152.1,152.09,46.11122112]
[1751996884213,0.06,152.1,152.09,39.53616688]
[1751996885295,0.06,152.1,152.09,46.11122112]
[1751996885496,0.06,152.1,152.09,39.53616688]
[1751996885897,0.06,152.1,152.09,46.11122112]
[1751996887201,0.06,152.1,152.09,39.53616688]
[1751996887596,0.06,152.1,152.09,33.7]
[1751996887796,5.89616688,152.1,152.01,1.6015]
[1751996888005,5.89616688,152.1,152.02,33.7]
[1751996888006,5.83616688,152.05,152.02,33.7]
[1751996888205,5.83616688,152.06,152.02,33.7]
[1751996888519,5.83616688,152.08,152.03,24.48581574]
[1751996888816,5.83616688,152.07,152.04,33.7]
[1751996889396,7.36419267,152.06,152.04,33.7]
[1751996889800,13.20035955,152.06,152.04,33.7]
[1751996890007,5.83616688,152.06,152.04,33.7]
[1751996890520,13.20157194,152.06,152.04,33.7]
[1751996891116,7.36540506,152.06,152.04,33.7]
[1751996891304,7.36554137,152.05,152.04,33.7]
[1751996891505,13.20168873,152.06,152.04,33.7]
[1751996891699,13.20168873,152.05,152.01,18.64964886]
[1751996891900,5.83616688,152.04,152.02,33.7]
[1751996892206,7.36569746,152.05,152.03,33.7]
[1751996892415,13.20186434,152.05,152.03,33.7]
[1751996893501,7.36569746,152.05,152.03,33.7]
[1751996893697,5.83616688,152.06,152.02,12.4142362]
[1751996893922,13.20204379,152.06,152.03,33.7]
[1751996894116,7.36587691,152.06,152.03,33.7]
[1751996894302,13.20204379,152.06,152.03,33.7]
[1751996895223,7.36587691,152.06,152.03,33.7]
[1751996895519,7.36587691,152.06,152.03,39.53616688]
[1751996895721,7.36587691,152.06,152.03,5.83616688]
[1751996895937,7.36587691,152.06,152.03,46.1137145]
[1751996896115,154.07561097,152.08,152.03,46.1137145]
[1751996896116,5.83616688,152.07,152.03,46.1137145]
[1751996896314,7.36657986,152.06,152.03,46.1137145]
[1751996896518,5.83616688,152.07,152.03,46.1137145]
[1751996896714,5.83616688,152.06,152.03,40.27754762]
[1751996897223,7.36703335,152.07,152.03,40.27754762]
[1751996897526,7.36703335,152.06,152.03,46.1137145]
[1751996897824,5.83616688,152.07,152.03,46.1137145]
[1751996898024,13.20368341,152.07,152.03,46.1137145]
[1751996898798,7.36751653,152.07,152.04,5.83616688]
[1751996898999,7.36751653,152.07,152.05,33.7]
[1751996899195,13.20368341,152.07,152.05,33.7]
[1751996899416,7.36751653,152.06,152.05,33.7]
[1751996900428,7.42751653,152.06,152.05,33.7]
[1751996900633,0.06,152.06,152.05,33.7]
[1751996900957,7.42955962,152.06,152.05,33.7]
[1751996901310,0.06,152.06,152.05,33.7]
[1751996901523,7.42955962,152.06,152.05,33.7]
[1751996902132,13.2657265,152.06,152.05,33.7]
[1751996902503,5.89616688,152.06,152.05,33.7]
[1751996902727,13.2657265,152.06,152.05,33.7]
[1751996903229,5.89616688,152.06,152.05,33.7]
[1751996903531,7.42955962,152.06,152.05,33.7]
[1751996904830,0.06,152.06,152.05,33.7]
[1751996905433,7.43325296,152.06,152.05,33.7]
[1751996907343,12.3536291,152.06,152.05,33.7]
[1751996907541,4.98037614,152.06,152.05,33.7]
[1751996907753,12.3536291,152.06,152.05,33.7]
[1751996913057,24.7661507,152.06,152.03,0.03]
[1751996913233,18.13822465,152.05,152.03,0.03]
[1751996913544,12.30217597,152.04,152.03,0.03]
[1751996914424,12.30217597,152.04,152.03,33.71]
[1751996915045,7.38179983,152.04,152.03,33.71]
[1751996917863,7.38179983,152.04,152.03,0.03]
[1751996918057,7.38179983,152.04,152.03,33.71]
[1751996919350,13.21796671,152.04,152.03,33.71]
[1751996919876,5.83616688,152.04,152.03,33.71]
[1751996920032,13.21796671,152.04,152.03,33.71]
[1751996920435,13.21796671,152.04,152.03,0.03]
[1751996921463,7.38179983,152.04,152.03,0.03]
[1751996921639,13.21796671,152.04,152.03,0.03]
[1751996925240,5.89616688,152.06,152.03,33.71]
[1751996925544,7.3794708,152.05,152.03,33.71]
[1751996925744,5.89616688,152.06,152.03,33.71]
[1751996925946,7.37946573,152.05,152.03,33.71]
[1751996926162,5.89616688,152.06,152.03,40.28748867]
[1751996926457,5.89616688,152.06,152.04,5.83616688]
[1751996926458,7.37946707,152.05,152.04,5.83616688]
[1751996927765,7.37946707,152.05,152.04,24.48581574]
[1751996927951,0.06,152.06,152.04,24.48581574]
[1751996928257,0.06,152.06,152.05,64.74259969]
[1751996928565,7.43953919,152.06,152.05,64.74259969]
[1751996928952,0.06,152.06,152.05,64.74259969]
[1751996929342,7.43953919,152.06,152.05,64.74259969]
[1751996929869,0.06,152.06,152.05,64.74259969]
[1751996930755,0.06,152.06,152.05,58.90643281]
[1751996930981,0.06,152.06,152.05,64.74259969]
[1751996933568,7.38704572,152.09,152.06,18.64964886]
[1751996933869,0.06,152.1,152.08,24.48581574]
[1751996934045,0.06,152.1,152.09,33.68]
[1751996934248,7.4463936,152.1,152.09,40.25505424]
[1751996934449,0.06,152.1,152.09,40.25505424]
[1751996935771,7.44322271,152.1,152.09,40.25505424]
[1751996936156,0.06,152.1,152.09,40.25505424]
[1751996939782,0.06,152.1,152.09,46.09122112]
[1751996941010,0.06,152.1,152.09,33.68]
[1751996942090,0.06,152.1,152.09,40.25505424]
[1751996950061,0.06,152.1,152.09,33.68]
[1751996953096,0.06,152.1,152.09,40.25505424]
[1751996958483,0.06,152.1,152.09,62.62684394]
[1751996960202,0.06,152.1,152.09,58.9047031]
[1751996960381,0.06,152.1,152.09,62.62684394]
[1751996961200,0.06,152.1,152.08,6.57511878]
[1751996961498,0.06,152.1,152.09,33.64]
[1751996961678,0.06,152.1,152.08,6.57511878]
[1751996962008,0.06,152.1,152.09,33.64]
[1751996962805,0.06,152.1,152.09,40.21505424]
[1751996962991,0.06,152.1,152.09,33.64]
[1751996963895,0.06,152.1,152.09,40.21505424]
[1751996965782,0.06,152.1,152.09,58.8647031]
[1751996967203,0.06,152.1,152.09,64.68122516]
[1751996971415,7.37948547,152.14,152.12,18.64964886]
[1751996971581,0.2,152.15,152.14,44.64964886]
[1751996971781,0.2,152.15,152.14,84.10617092]
[1751996971984,1e-08,152.15,152.14,84.10617092]
[1751996972213,1e-08,152.15,152.14,90.76067092]
[1751996972382,1e-08,152.15,152.14,97.3335643]
[1751996974187,1e-08,152.15,152.14,100.5971679]
[1751996977908,1e-08,152.15,152.14,51.22254224]
[1751996978119,1e-08,152.15,152.14,50.46617092]
[1751996978414,5.81652207,152.15,152.11,18.64964886]
[1751996978734,5.81652206,152.13,152.09,31.04114831]
[1751996978892,5.81652206,152.13,152.11,18.64964886]
[1751996979089,5.81652206,152.14,152.12,33.62]
[1751996980493,1e-08,152.15,152.12,40.19360798]
[1751996980690,1e-08,152.15,152.13,18.64964886]
[1751996980898,1e-08,152.15,152.14,33.62]
[1751996982524,1e-08,152.15,152.14,40.19289338]
[1751996982827,1e-08,152.15,152.14,33.62]
[1751996985119,5.81652207,152.15,152.14,33.62]
[1751996985319,5.81652207,152.15,152.13,33.62]
[1751996985627,1e-08,152.15,152.13,33.62]
[1751996985819,5.81652207,152.15,152.13,33.62]
[1751996986023,5.81652207,152.15,152.12,6.57369582]
[1751996986215,5.81652207,152.15,152.13,33.62]
[1751996988303,1e-08,152.15,152.13,33.62]
[1751996988516,1e-08,152.15,152.13,40.19330684]
[1751996992412,5.81652207,152.15,152.13,33.62]
[1751996992836,1e-08,152.15,152.13,33.62]
[1751996993040,5.81652207,152.15,152.12,6.5735648]
[1751996993229,5.81652207,152.15,152.13,33.62]
[1751996993575,1e-08,152.15,152.11,67.65916676]
[1751996993711,1e-08,152.15,152.13,18.64964886]
[1751996993911,1e-08,152.15,152.14,58.08617092]
[1751996995115,1e-08,152.15,152.14,58.84254224]
[1751996996142,1e-08,152.15,152.14,64.6590643]
[1751997002722,1e-08,152.15,152.14,90.6590643]
[1751997004144,1e-08,152.15,152.14,70.47558636]
[1751997004325,1e-08,152.17,152.16,52.7356783]
[1751997004532,1e-08,152.17,152.16,105.05552536]
[1751997006346,1e-08,152.19,152.18,6.57116572]
[1751997006647,12.31076903,152.32,152.18,81.74236752]